bitfinex-derivatives/quotes_SOLF0:USTF0_20250603
["timestamp","ask_amount","ask_price","bid_price","bid_amount"]
[1748913820330,33.18,160.24,160.16,5.6614024]
[1748913820531,0.03985289,160.22,160.18,0.0476304]
[1748913820728,6.2384,160.21,160.18,0.0476304]
[1748913821128,0.03985289,160.22,160.18,0.0476304]
[1748913821329,6.27785289,160.22,160.18,0.0476304]
[1748913821732,0.03985289,160.22,160.18,0.0476304]
[1748913822227,0.03985289,160.22,160.18,11.74944867]
[1748913822431,0.03985289,160.22,160.21,6.2381]
[1748913823134,0.03985289,160.22,160.2,11.70181827]
[1748913823135,6.235,160.29,160.24,6.2366]
[1748913823434,44.88181827,160.3,160.2,11.70181827]
[1748913823635,6.2358,160.27,160.23,6.2369]
[1748913823835,44.88181827,160.3,160.2,11.70181827]
[1748913824134,0.04481033,160.27,160.23,0.04130273]
[1748913826130,6.2362,160.26,160.23,0.04130273]
[1748913826333,0.04481033,160.27,160.23,0.04130273]
[1748913827939,6.2364,160.26,160.23,0.04130273]
[1748913828636,6.2365,160.25,160.23,0.04130273]
[1748913828839,0.04481033,160.27,160.23,0.04130273]
[1748913829037,44.88181827,160.26,160.23,0.04130273]
[1748913829238,6.2369,160.24,160.23,0.04130273]
[1748913830142,44.88181827,160.26,160.23,0.04130273]
[1748913830441,33.18,160.26,160.23,0.04130273]
[1748913830640,39.4162,160.26,160.23,6.27840273]
[1748913831040,33.18,160.26,160.23,0.04130273]
[1748913831542,44.88181827,160.26,160.23,0.04130273]
[1748913832242,33.18,160.26,160.23,0.04130273]
[1748913832740,6.2368,160.25,160.23,0.04130273]
[1748913832940,33.18,160.26,160.23,0.04130273]
[1748913833137,6.2367,160.25,160.23,0.04130273]
[1748913833332,33.18,160.26,160.23,0.04130273]
[1748913833837,39.4162,160.26,160.23,0.04130273]
[1748913834142,0.04481033,160.27,160.23,0.04130273]
[1748913834739,0.04481033,160.27,160.24,6.2368]
[1748913834945,6.28051033,160.27,160.24,6.2368]
[1748913835842,0.04481033,160.27,160.25,6.2364]
[1748913836836,0.04481033,160.27,160.24,6.2367]
[1748913837036,0.04481033,160.27,160.23,0.04130273]
[1748913838345,0.04481033,160.27,160.24,6.2369]
[1748913838849,0.04481033,160.27,160.23,0.04130273]
[1748913839449,6.2364,160.26,160.23,6.27860273]
[1748913839647,0.04481033,160.27,160.23,6.27860273]
[1748913839951,6.28081033,160.27,160.23,6.27860273]
[1748913840450,6.28081033,160.27,160.24,6.2368]
[1748913840652,6.2362,160.26,160.23,0.04130273]
[1748913842249,6.28071033,160.27,160.23,0.04130273]
[1748913842641,11.7466286,160.27,160.23,0.04130273]
[1748913842847,2.0451,160.26,160.23,0.04130273]
[1748913843656,0.04481033,160.27,160.23,0.04130273]
[1748913844153,0.04481033,160.27,160.23,11.743121]
[1748913844853,0.04481033,160.27,160.25,6.2362]
[1748913845050,0.04481033,160.27,160.23,0.04130273]
[1748913845552,0.04481033,160.27,160.24,11.70181827]
[1748913845753,0.04481033,160.27,160.24,17.40711529]
[1748913846052,0.04481033,160.27,160.26,6.2361]
[1748913846356,33.2,160.33,160.3,6.2342]
[1748913846658,4.2673,160.35,160.28,11.70181827]
[1748913847057,6.2333,160.34,160.3,6.2343]
[1748913847251,44.90181827,160.39,160.28,11.70181827]
[1748913847448,0.04189426,160.35,160.32,0.04156729]
[1748913848262,0.04189426,160.35,160.32,6.27516729]
[1748913848456,0.04189426,160.35,160.32,0.04156729]
[1748913849365,6.2331,160.34,160.32,0.04156729]
[1748913849565,0.04189426,160.35,160.32,0.04156729]
[1748913849966,6.27479426,160.35,160.32,0.04156729]
[1748913850865,0.04189426,160.35,160.32,0.04156729]
[1748913851570,6.2334,160.34,160.32,0.04156729]
[1748913852257,6.27469426,160.35,160.32,0.04156729]
[1748913852452,0.04189426,160.35,160.32,0.04156729]
[1748913853565,0.04189426,160.35,160.33,11.70181827]
[1748913853954,0.04189426,160.35,160.34,6.233]
[1748913855564,0.04189426,160.35,160.32,0.04156729]
[1748913855762,0.04189426,160.35,160.32,11.74338556]
[1748913856172,0.04189426,160.35,160.34,17.93481827]
[1748913857268,0.04189426,160.35,160.34,13.38464843]
[1748913858165,0.04189426,160.35,160.33,6.2333]
[1748913858360,0.04189426,160.35,160.33,13.38494843]
[1748913858564,0.04189426,160.35,160.33,7.15164843]
[1748913858780,0.04189426,160.35,160.32,0.04156729]
[1748913859368,6.27459426,160.35,160.32,0.04156729]
[1748913859765,0.04189426,160.35,160.32,0.04156729]
[1748913859966,6.27459426,160.35,160.32,6.27536729]
[1748913860965,0.04189426,160.35,160.32,0.04156729]
[1748913861577,0.04189426,160.35,160.33,6.2331]
[1748913861966,0.04189426,160.35,160.32,0.04156729]
[1748913862168,0.04189426,160.35,160.34,6.233]
[1748913862975,0.04189426,160.35,160.32,0.04156729]
[1748913863976,0.04189426,160.35,160.32,6.27516729]
[1748913864473,0.04189426,160.35,160.32,0.04156729]
[1748913865069,0.04189426,160.35,160.32,6.27506729]
[1748913865366,0.04189426,160.35,160.32,0.04156729]
[1748913866168,6.2334,160.33,160.32,0.04156729]
[1748913866578,4.33679426,160.35,160.32,0.04156729]
[1748913866878,6.2334,160.33,160.32,0.04156729]
[1748913867370,6.2331,160.34,160.32,0.04156729]
[1748913867575,4.33679426,160.35,160.32,0.04156729]
[1748913867886,6.2334,160.33,160.32,0.04156729]
[1748913868481,6.2344,160.31,160.28,33.18]
[1748913868675,6.2344,160.31,160.26,11.66021661]
[1748913868872,6.2334,160.33,160.26,11.66021661]
[1748913869382,0.04687242,160.31,160.28,0.04140172]
[1748913869572,0.04687242,160.31,160.29,6.235]
[1748913870076,0.04687242,160.31,160.28,6.27660172]
[1748913870383,0.04687242,160.31,160.28,0.04140172]
[1748913870678,0.04687242,160.31,160.28,6.27660172]
[1748913871369,0.04687242,160.31,160.29,6.2349]
[1748913871566,0.04687242,160.31,160.28,0.04140172]
[1748913871970,6.28137242,160.31,160.28,0.04140172]
[1748913872771,6.2347,160.3,160.28,0.04140172]
[1748913873079,0.04687242,160.31,160.28,0.04140172]
[1748913873582,6.235,160.29,160.28,0.04140172]
[1748913875881,0.04687242,160.31,160.28,0.04140172]
[1748913877577,6.28137242,160.31,160.28,0.04140172]
[1748913878584,6.2346,160.3,160.28,0.04140172]
[1748913878882,0.04687242,160.31,160.28,0.04140172]
[1748913879081,6.28117242,160.31,160.28,0.04140172]
[1748913879278,0.04687242,160.31,160.28,0.04140172]
[1748913879480,6.235,160.29,160.28,0.04140172]
[1748913879674,33.1,160.3,160.22,33.1]
[1748913879879,33.1,160.3,160.23,6.237]
[1748913880082,6.236,160.27,160.22,33.1]
[1748913880278,33.1,160.3,160.22,33.1]
[1748913880683,0.04250333,160.28,160.24,0.04636001]
[1748913881388,0.04250333,160.28,160.26,6.2358]
[1748913881679,0.04250333,160.28,160.25,7.16211414]
[1748913881879,0.04250333,160.28,160.24,7.20847415]
[1748913882284,0.04250333,160.28,160.25,6.2364]
[1748913882579,0.04250333,160.28,160.26,7.16211414]
[1748913882787,0.04250333,160.28,160.26,40.26211414]
[1748913882984,0.04250333,160.28,160.27,6.2357]
[1748913883784,3.33e-06,160.28,160.27,6.2357]
[1748913883981,33.1,160.36,160.27,7.16211414]
[1748913884190,6.2328,160.35,160.3,7.16211414]
[1748913884487,7.16211414,160.37,160.33,6.2333]
[1748913884781,6.2321,160.37,160.3,40.26211414]
[1748913884987,0.03973836,160.35,160.33,6.2332]
[1748913885385,0.03973836,160.35,160.32,0.04510857]
[1748913885990,0.03973836,160.35,160.34,6.233]
[1748913886289,0.03973836,160.35,160.32,0.04510857]
[1748913886488,6.27243836,160.35,160.32,0.04510857]
[1748913887587,6.27243836,160.35,160.32,6.27890857]
[1748913888383,0.03973836,160.35,160.33,6.2333]
[1748913888791,0.03973836,160.35,160.32,0.04510857]
[1748913888995,0.03973836,160.35,160.32,6.27870857]
[1748913889994,0.03973836,160.35,160.33,6.2333]
[1748913892296,0.03973836,160.35,160.34,6.233]
[1748913896197,0.03973836,160.35,160.32,0.04510857]
[1748913896503,0.03973836,160.35,160.26,38.79128574]
[1748913896703,6.2337,160.33,160.29,6.2347]
[1748913897300,6.2331,160.34,160.3,6.2346]
[1748913897690,33.13973836,160.35,160.29,0.04281848]
[1748913897895,6.2335,160.33,160.29,6.27751848]
[1748913898200,33.13973836,160.35,160.29,0.04281848]
[1748913898502,6.2334,160.33,160.29,6.27751848]
[1748913899102,6.2339,160.32,160.29,6.27751848]
[1748913899404,6.2336,160.33,160.29,6.27751848]
[1748913899705,4.2116,160.34,160.29,6.27751848]
[1748913900005,4.2116,160.34,160.29,0.04281848]
[1748913900205,15.87096837,160.34,160.29,0.04281848]
[1748913900405,15.87096837,160.34,160.23,38.79478289]
[1748913900406,6.2356,160.28,160.23,38.79478289]
[1748913900801,33.1,160.31,160.23,38.79478289]
[1748913900998,6.2348,160.3,160.26,6.2359]
[1748913901194,33.1,160.31,160.24,5.69478289]
[1748913901408,0.04014326,160.29,160.26,6.28221218]
[1748913902097,0.04014326,160.29,160.28,6.2354]
[1748913905405,0.04014326,160.29,160.28,13.39379246]
[1748913905700,0.04014326,160.29,160.26,5.74323645]
[1748913905701,0.04014326,160.29,160.26,12.90162891]
[1748913905903,0.04014326,160.29,160.28,7.15839246]
[1748913906209,0.04014326,160.29,160.28,13.39379246]
[1748913908000,538.86,160.42,160.28,39.83839246]
[1748913908206,32.68,160.4,160.33,7.15839246]
[1748913908604,32.68,160.4,160.36,6.2322]
[1748913908800,6.2277,160.41,160.35,7.15839246]
[1748913909004,6.2277,160.41,160.37,7.15839246]
[1748913909200,0.04154444,160.4,160.39,6.2309]
[1748913909399,0.04670547,160.41,160.38,0.04776343]
[1748913909614,0.04285097,160.41,160.38,0.04664828]
[1748913909806,0.04285097,160.41,160.39,6.2308]
[1748913910008,0.04285097,160.41,160.38,0.04664828]
[1748913910515,2.15545097,160.41,160.38,0.04664828]
[1748913911105,0.04285097,160.41,160.38,0.04664828]
[1748913911516,0.04285097,160.41,160.39,6.2308]
[1748913911810,0.04285097,160.41,160.38,0.04664828]
[1748913912017,0.04285097,160.41,160.4,6.2307]
[1748913912312,0.04285097,160.41,160.38,0.04664828]
[1748913912714,0.04285097,160.41,160.4,6.2307]
[1748913912910,0.04285097,160.41,160.38,0.04664828]
[1748913913316,0.04285097,160.41,160.39,6.2308]
[1748913913515,0.04285097,160.41,160.38,0.04664828]
[1748913914416,0.04285097,160.41,160.4,6.2307]
[1748913915911,0.04285097,160.41,160.38,0.04664828]
[1748913916112,0.04285097,160.41,160.38,7.20504074]
[1748913916322,0.04285097,160.41,160.39,6.2308]
[1748913917213,0.04285097,160.41,160.38,7.20504074]
[1748913917815,0.04285097,160.41,160.38,0.04664828]
[1748913918513,6.27325097,160.41,160.38,0.04664828]
[1748913918718,0.04285097,160.41,160.38,0.04664828]
[1748913919019,6.231,160.4,160.38,0.04664828]
[1748913919316,0.04285097,160.41,160.38,0.04664828]
[1748913919719,6.2309,160.4,160.38,0.04664828]
[1748913920220,0.04285097,160.41,160.38,6.27784828]
[1748913920221,6.27335097,160.41,160.38,6.27784828]
[1748913920817,6.27335097,160.41,160.38,0.04664828]
[1748913921612,0.04285097,160.41,160.38,0.04664828]
[1748913921811,0.04285097,160.41,160.38,7.20504074]
[1748913922210,6.27315097,160.41,160.38,7.20504074]
[1748913922718,6.27315097,160.41,160.38,13.43644074]
[1748913922923,0.04285097,160.41,160.38,13.43644074]
[1748913923119,0.04285097,160.41,160.38,0.04664828]
[1748913923522,6.2311,160.39,160.38,0.04664828]
[1748913927113,6.2308,160.4,160.38,0.04664828]
[1748913927822,32.70285097,160.41,160.38,0.04664828]
[1748913928319,0.04285097,160.41,160.38,6.27804828]
[1748913928525,0.04285097,160.41,160.38,0.04664828]
[1748913929427,0.04285097,160.41,160.4,6.2307]
[1748913931717,0.04285097,160.41,160.39,6.2309]
[1748913932427,6.27325097,160.41,160.38,0.04664828]
[1748913932831,0.04285097,160.41,160.38,0.04664828]
[1748913933033,6.2309,160.4,160.38,0.04664828]
[1748913934837,6.27325097,160.41,160.38,6.27804828]
[1748913935730,0.04285097,160.41,160.38,0.04664828]
[1748913935927,0.04285097,160.41,160.39,7.15839246]
[1748913936523,0.04285097,160.41,160.4,6.2307]
[1748913937330,5.097e-05,160.41,160.4,6.2307]
[1748913938130,5.097e-05,160.41,160.38,0.04664828]
[1748913938432,5.097e-05,160.41,160.39,7.15839246]
[1748913939026,5.097e-05,160.41,160.4,6.2307]
[1748913939330,5.097e-05,160.41,160.38,0.04664828]
[1748913939931,5.097e-05,160.41,160.39,6.2308]
[1748913943943,5.097e-05,160.41,160.38,0.04664828]
[1748913944441,5.097e-05,160.41,160.39,7.15839246]
[1748913945633,5.097e-05,160.41,160.4,6.2307]
[1748913946645,5.097e-05,160.41,160.4,13.38909246]
[1748913949544,5.097e-05,160.41,160.4,6.2307]
[1748913949742,5.097e-05,160.41,160.4,13.38909246]
[1748913950041,5.097e-05,160.41,160.4,6.2307]
[1748913950248,5.097e-05,160.41,160.39,13.38929246]
[1748913950641,5.097e-05,160.41,160.39,7.15839246]
[1748913952249,5.097e-05,160.41,160.4,6.2307]
[1748913958445,6.2281,160.47,160.44,6.229]
[1748913959242,6.2285,160.46,160.42,7.15839246]
[1748913959647,0.04764708,160.46,160.42,7.20407418]
[1748913959943,0.04764708,160.46,160.43,6.2293]
[1748913962043,6.27604708,160.46,160.42,13.43377418]
[1748913962349,6.27604708,160.46,160.42,7.20407418]
[1748913962552,0.04764708,160.46,160.43,6.2293]
[1748913963748,0.04764708,160.46,160.44,6.2291]
[1748913963949,0.04764708,160.46,160.42,7.20407418]
[1748913964453,0.04764708,160.46,160.43,6.2293]
[1748913964853,0.04764708,160.46,160.44,6.2291]
[1748913965655,32.82,160.53,160.42,7.20407418]
[1748913965656,7.74576419,160.57,160.45,7.15839246]
[1748913965948,2.0475,160.56,160.49,7.15839246]
[1748913966149,2.0475,160.56,160.51,7.15839246]
[1748913966550,2.0711,160.59,160.54,6.225]
[1748913966856,6.269935,160.58,160.55,0.04795916]
[1748913967053,0.045935,160.58,160.55,6.27265916]
[1748913967256,0.045935,160.58,160.55,0.04795916]
[1748913967552,6.269735,160.58,160.55,0.04795916]
[1748913967752,0.045935,160.58,160.55,0.04795916]
[1748913968151,6.2245,160.56,160.55,0.04795916]
[1748913969049,6.226,160.52,160.49,6.227]
[1748913969244,9.33689246,160.55,160.47,7.15839246]
[1748913969648,6.2267,160.51,160.47,13.38619246]
[1748913970046,6.2266,160.51,160.47,13.43365389]
[1748913970257,6.27391782,160.51,160.47,13.43365389]
[1748913970455,0.04731782,160.51,160.47,7.20595389]
[1748913970651,0.04731782,160.51,160.48,6.2273]
[1748913971150,0.04731782,160.51,160.5,6.2268]
[1748913971552,0.04731782,160.51,160.49,7.15839246]
[1748913971753,0.04731782,160.51,160.48,6.2274]
[1748913971950,0.04731782,160.51,160.47,0.04756143]
[1748913971951,0.04731782,160.51,160.47,7.20595389]
[1748913972152,0.04731782,160.51,160.47,32.58756143]
[1748913973354,7.20571028,160.51,160.47,0.04756143]
[1748913973750,0.04731782,160.51,160.47,0.04756143]
[1748913973955,6.2268,160.5,160.47,6.27546143]
[1748913975055,6.2272,160.49,160.47,0.04756143]
[1748913975858,0.04731782,160.51,160.47,0.04756143]
[1748913976456,6.2268,160.5,160.47,6.27536143]
[1748913976658,0.04731782,160.51,160.47,0.04756143]
[1748913977156,6.227,160.5,160.47,0.04756143]
[1748913978162,6.27391782,160.51,160.47,6.27546143]
[1748913978356,0.04731782,160.51,160.47,0.04756143]
[1748913978658,0.04731782,160.51,160.48,6.2275]
[1748913978860,0.04731782,160.51,160.47,0.04756143]
[1748913979262,0.04731782,160.51,160.49,6.2271]
[1748913979962,0.04731782,160.51,160.47,0.04756143]
[1748913980355,0.04731782,160.51,160.48,6.2273]
[1748913980665,0.04731782,160.51,160.47,0.04756143]
[1748913980868,6.27401782,160.51,160.47,6.27526143]
[1748913981163,0.04731782,160.51,160.47,0.04756143]
[1748913982063,6.2271,160.5,160.47,6.27556143]
[1748913983665,6.27391782,160.51,160.47,6.27556143]
[1748913984264,6.27391782,160.51,160.47,0.04756143]
[1748913984761,6.27391782,160.51,160.47,6.27526143]
[1748913986564,6.2269,160.5,160.47,6.27526143]
[1748913986865,0.04731782,160.51,160.47,6.27526143]
[1748913987063,0.04731782,160.51,160.48,6.2275]
[1748913987264,6.27401782,160.51,160.48,6.2275]
[1748913989455,0.04731782,160.51,160.48,39.69839246]
[1748913990062,0.04731782,160.51,160.5,6.2268]
[1748913991056,0.04731782,160.51,160.5,13.38519246]
[1748913993172,0.04731782,160.51,160.5,6.2268]
[1748913993666,0.04731782,160.51,160.48,32.54]
[1748913993872,0.04731782,160.51,160.47,0.04756143]
[1748913994372,6.2271,160.5,160.47,0.04756143]
[1748913996065,6.2271,160.5,160.47,6.27556143]
[1748913996469,6.2271,160.5,160.47,0.04756143]
[1748913996965,6.2271,160.5,160.47,6.27536143]
[1748913998069,0.04731782,160.51,160.47,0.04756143]
[1748913998070,7.15839246,160.49,160.47,0.04756143]
[1748913999064,13.39839246,160.49,160.39,5.68156511]
[1748913999266,32.52,160.5,160.37,7.55599845]
[1748913999267,7.15839246,160.41,160.37,5.68156511]
[1748913999569,7.15839246,160.41,160.38,6.2313]
[1748913999773,7.15839246,160.41,160.37,5.68156511]
[1748913999774,7.15839246,160.39,160.37,5.68156511]
[1748914000074,7.15839246,160.39,160.36,0.04000047]
[1748914000376,7.15839246,160.36,160.31,13.2465943]
[1748914000560,7.15839246,160.36,160.29,40.07599845]
[1748914000765,13.39079246,160.36,160.29,40.07599845]
[1748914000966,7.15839246,160.36,160.29,32.52]
[1748914001274,0.04122665,160.34,160.32,6.2337]
[1748914001468,0.04122665,160.34,160.31,0.0442779]
[1748914001970,0.04122665,160.34,160.32,6.2335]
[1748914002366,0.04122665,160.34,160.31,6.2783779]
[1748914002570,0.04122665,160.34,160.31,0.0442779]
[1748914002976,7.15839246,160.33,160.31,0.0442779]
[1748914003777,6.2338,160.32,160.31,0.0442779]
[1748914005076,6.2344,160.31,160.26,32.54]
[1748914005474,7.15839246,160.33,160.26,32.54]
[1748914005670,6.2342,160.31,160.26,32.54]
[1748914006176,0.04163544,160.3,160.27,6.28319768]
[1748914006476,0.04163544,160.3,160.27,0.04779768]
[1748914007669,0.04163544,160.3,160.27,6.28339768]
[1748914007867,0.04163544,160.3,160.27,0.04779768]
[1748914008886,0.04163544,160.3,160.28,6.2353]
[1748914009779,0.04163544,160.3,160.29,6.235]
[1748914009985,32.56,160.37,160.28,7.15839246]
[1748914010177,32.56,160.37,160.31,7.15839246]
[1748914010378,38.792,160.37,160.33,6.2331]
[1748914010879,6.2316,160.38,160.31,7.15839246]
[1748914011072,0.03972723,160.36,160.33,0.04451839]
[1748914011678,0.03972723,160.36,160.33,7.20291085]
[1748914011879,0.03972723,160.36,160.33,0.04451839]
[1748914014289,6.2329,160.35,160.33,0.04451839]
[1748914014494,0.03972723,160.36,160.33,0.04451839]
[1748914014495,2.723e-05,160.36,160.33,0.04451839]
[1748914014683,2.723e-05,160.36,160.35,7.15839246]
[1748914015486,2.723e-05,160.36,160.35,13.39099246]
[1748914019293,32.56,160.43,160.4,6.2306]
[1748914019604,32.56,160.43,160.32,32.56]
[1748914019605,32.56,160.43,160.38,7.15839246]
[1748914019790,2.191,160.44,160.38,7.15839246]
[1748914020199,0.04781892,160.43,160.39,0.04757265]
[1748914020597,0.04781892,160.43,160.4,6.2304]
[1748914021095,0.04781892,160.43,160.39,6.27857265]
[1748914021498,0.04781892,160.43,160.4,6.2306]
[1748914021698,0.04781892,160.43,160.39,0.04757265]
[1748914022500,0.04781892,160.43,160.4,6.2306]
[1748914023002,0.04781892,160.43,160.39,0.04757265]
[1748914023191,6.27741892,160.43,160.39,13.43676511]
[1748914023503,0.04781892,160.43,160.39,7.20596511]
[1748914024604,0.04781892,160.43,160.42,7.15839246]
[1748914025008,0.04781892,160.43,160.42,13.38829246]
[1748914027805,1.9945,160.47,160.45,6.2284]
[1748914028002,32.82,160.51,160.45,7.15839246]
[1748914028813,6.26739453,160.5,160.46,6.2703443]
[1748914029108,6.26739453,160.5,160.46,0.0420443]
[1748914029308,0.04029453,160.5,160.48,6.2273]
[1748914030006,0.04029453,160.5,160.49,6.2272]
[1748914031608,0.04029453,160.5,160.47,7.15839246]
[1748914031797,6.2273,160.49,160.46,0.0420443]
[1748914032906,0.04029453,160.5,160.47,7.15839246]
[1748914033410,0.04029453,160.5,160.48,6.2273]
[1748914033600,0.04029453,160.5,160.47,7.15839246]
[1748914034309,0.04029453,160.5,160.48,6.2276]
[1748914034814,0.04029453,160.5,160.49,13.38559246]
[1748914038119,0.04029453,160.5,160.47,32.8]
[1748914038120,0.04029453,160.5,160.48,13.38579246]
[1748914039211,0.04029453,160.5,160.48,6.2274]
[1748914039410,0.04029453,160.5,160.48,13.38579246]
[1748914040118,0.04029453,160.5,160.47,46.18619246]
[1748914040826,0.04029453,160.5,160.48,6.2275]
[1748914041114,0.04029453,160.5,160.47,39.95839246]
[1748914041519,0.04029453,160.5,160.48,6.2273]
[1748914042318,0.04029453,160.5,160.47,39.95839246]
[1748914042319,0.04029453,160.5,160.49,13.38559246]
[1748914042511,0.04029453,160.5,160.49,7.15839246]
[1748914042922,0.04029453,160.5,160.49,2.48915378]
[1748914043120,0.04029453,160.5,160.49,8.71635378]
[1748914045527,0.04029453,160.5,160.48,6.2274]
[1748914046419,0.04029453,160.5,160.47,39.95839246]
[1748914046622,0.04029453,160.5,160.49,6.2272]
[1748914049326,0.04029453,160.5,160.48,13.38589246]
[1748914050220,0.04029453,160.5,160.47,32.8]
[1748914050415,0.04029453,160.5,160.46,0.0420443]
[1748914052529,6.2275,160.49,160.46,0.0420443]
[1748914053427,6.2276,160.48,160.46,0.0420443]
[1748914053623,0.04029453,160.5,160.46,0.0420443]
[1748914053836,0.04029453,160.5,160.46,6.2702443]
[1748914054331,6.2272,160.49,160.46,6.2702443]
[1748914054534,0.04029453,160.5,160.47,6.228]
[1748914054825,0.04029453,160.5,160.46,0.0420443]
[1748914055527,6.26719453,160.5,160.47,6.2279]
[1748914055732,0.04029453,160.5,160.46,0.0420443]
[1748914056027,6.2273,160.49,160.46,0.0420443]
[1748914057327,6.2277,160.48,160.46,0.0420443]
[1748914058128,39.69839246,160.49,160.42,32.8]
[1748914058323,2.0209,160.47,160.42,32.8]
[1748914058529,2.0209,160.47,160.4,7.15839246]
[1748914058729,2.0209,160.47,160.42,7.15839246]
[1748914059235,0.04770134,160.46,160.44,6.2291]
[1748914060333,6.27610134,160.46,160.43,6.27086931]
[1748914060524,0.04770134,160.46,160.43,0.04146931]
[1748914060926,6.27610134,160.46,160.43,6.27076931]
[1748914061129,0.04770134,160.46,160.43,0.04146931]
[1748914061531,0.04770134,160.46,160.44,6.2291]
[1748914061928,0.04770134,160.46,160.44,7.15839246]
[1748914062232,0.04770134,160.46,160.45,6.2287]
[1748914062822,0.04770134,160.46,160.44,7.15839246]
[1748914063037,0.04770134,160.46,160.43,0.04146931]
[1748914063334,0.04770134,160.46,160.45,6.2287]
[1748914063727,0.04770134,160.46,160.43,0.04146931]
[1748914064527,6.27640134,160.46,160.43,0.04146931]
[1748914065233,6.27640134,160.46,160.43,6.27086931]
[1748914065941,0.04770134,160.46,160.43,0.04146931]
[1748914066228,0.04770134,160.46,160.39,540.0745]
[1748914066229,7.15839246,160.44,160.36,39.69839246]
[1748914066433,39.69839246,160.44,160.36,32.54]
[1748914066732,6.2301,160.42,160.39,6.2311]
[1748914066932,39.69839246,160.44,160.35,7.15839246]
[1748914067231,0.04375606,160.41,160.38,0.04122959]
[1748914067429,39.69839246,160.4,160.33,32.54]
[1748914067628,41.87409246,160.4,160.33,32.54]
[1748914067828,41.87409246,160.4,160.31,545.86744716]
[1748914067829,7.15839246,160.38,160.31,5.67184716]
[1748914068031,7.15839246,160.34,160.31,5.67184716]
[1748914068228,6.2341,160.32,160.3,5.67184716]
[1748914068425,6.2341,160.32,160.29,0.04589146]
[1748914068830,6.27676282,160.33,160.29,6.28079146]
[1748914069034,0.04326282,160.33,160.29,6.28079146]
[1748914069230,6.282e-05,160.33,160.31,11.65882882]
[1748914069432,2.015,160.41,160.31,11.65882882]
[1748914069637,2.015,160.41,160.34,11.65882882]
[1748914070337,0.04422674,160.39,160.36,0.03961022]
[1748914072128,0.04422674,160.39,160.38,6.2315]
[1748914084839,32.54,160.45,160.43,6.2295]
[1748914085249,2.0744,160.46,160.38,44.21882882]
[1748914085938,2.0744,160.46,160.4,0.04167558]
[1748914085939,0.04082943,160.44,160.4,0.04167558]
[1748914086542,0.04082943,160.44,160.42,6.2296]
[1748914090342,0.04082943,160.44,160.43,6.2295]
[1748914091053,573.0835,160.55,160.43,11.65882882]
[1748914091241,573.0835,160.55,160.48,7.14089005]
[1748914091555,580.22439005,160.55,160.47,7.14089005]
[1748914091746,580.22439005,160.55,160.46,32.54]
[1748914092053,0.0408829,160.52,160.49,0.04037613]
[1748914092351,7.18177295,160.52,160.49,0.04037613]
[1748914093247,0.0408829,160.52,160.49,0.04037613]
[1748914093750,6.2268,160.51,160.49,0.04037613]
[1748914094451,6.2268,160.5,160.49,0.04037613]
[1748914095048,0.0408829,160.52,160.49,0.04037613]
[1748914095549,6.2671829,160.52,160.49,0.04037613]
[1748914096543,6.2265,160.51,160.49,0.04037613]
[1748914097149,6.2268,160.5,160.49,0.04037613]
[1748914098048,6.2291,160.45,160.41,6.2303]
[1748914098249,7.14089005,160.5,160.42,7.14089005]
[1748914098446,32.54,160.49,160.42,7.14089005]
[1748914098644,6.2278,160.48,160.44,6.2291]
[1748914099046,6.27176358,160.48,160.44,6.2699255]
[1748914099246,6.2281,160.47,160.44,6.2699255]
[1748914099648,0.04396358,160.48,160.44,0.0408255]
[1748914100057,6.2281,160.47,160.44,0.0408255]
[1748914100249,6.2281,160.47,160.44,6.2698255]
[1748914100753,6.27166358,160.48,160.44,6.2698255]
[1748914100945,6.27166358,160.48,160.45,6.2285]
[1748914101752,0.04396358,160.48,160.45,6.2285]
[1748914102054,0.04396358,160.48,160.44,0.0408255]
[1748914102258,0.04396358,160.48,160.44,7.18171555]
[1748914102449,0.04396358,160.48,160.45,6.2287]
[1748914102650,0.04396358,160.48,160.46,7.14089005]
[1748914103555,0.04396358,160.48,160.46,13.36899005]
[1748914103757,0.04396358,160.48,160.46,7.14089005]
[1748914103950,0.04396358,160.48,160.45,34.6462]
[1748914104657,0.04396358,160.48,160.47,6.228]
[1748914106952,38.7654,160.54,160.46,7.14089005]
[1748914107251,32.54,160.54,160.48,7.14089005]
[1748914107758,38.7654,160.54,160.5,6.2268]
[1748914107959,38.80545671,160.54,160.5,6.27114456]
[1748914108359,0.04005671,160.54,160.51,6.2261]
[1748914108565,0.04005671,160.54,160.5,0.04434456]
[1748914109052,6.26545671,160.54,160.5,6.27104456]
[1748914109448,0.04005671,160.54,160.51,6.2264]
[1748914109653,0.04005671,160.54,160.5,0.04434456]
[1748914110055,529.4908968,160.63,160.51,39.66089005]
[1748914110257,7.14089005,160.6,160.51,41.71759005]